bitfinex/quotes_BTCUSD_20240617
["timestamp","ask_amount","ask_price","bid_price","bid_amount"]
[1718634930971,0.00093501,65651.0,65650.0,0.57695079]
[1718634931212,0.00093501,65651.0,65650.0,1.35424224]
[1718634931615,0.00093501,65651.0,65650.0,1.47854224]
[1718634931819,0.00093501,65651.0,65650.0,1.17389724]
[1718634932184,0.00093501,65651.0,65650.0,1.47854224]
[1718634932403,0.09116399,65672.0,65659.0,0.01998379]
[1718634932606,0.5653193,65671.0,65658.0,0.06998379]
[1718634932814,0.09648347,65670.0,65658.0,0.06998379]
[1718634933091,0.24921235,65669.0,65659.0,0.06769108]
[1718634933228,0.09648347,65668.0,65659.0,0.06769108]
[1718634933438,0.18204686,65667.0,65663.0,0.152292]
[1718634933662,5.46867861,65680.0,65666.0,0.01998379]
[1718634933663,0.09116399,65678.0,65666.0,0.01998379]
[1718634933867,0.15272888,65674.0,65668.0,0.11998379]
[1718634934129,0.07290392,65673.0,65668.0,0.11998379]
[1718634934331,0.2256328,65672.0,65669.0,0.01998379]
[1718634934500,0.15272888,65672.0,65669.0,0.17226179]
[1718634934850,5.46867861,65680.0,65675.0,0.152264]
[1718634935063,0.22665145,65679.0,65672.0,0.01998379]
[1718634935277,0.02183257,65678.0,65672.0,0.01998379]
[1718634935447,0.1425,65677.0,65672.0,0.01998379]
[1718634935650,0.1425,65677.0,65675.0,0.11998379]
[1718634935788,0.1425,65677.0,65676.0,0.11998379]
[1718634936194,0.1425,65677.0,65675.0,0.11998379]
[1718634936606,0.1425,65677.0,65672.0,0.002]
[1718634936821,0.15272888,65676.0,65672.0,0.001]
[1718634937180,0.15272888,65676.0,65669.0,0.05]
[1718634937181,0.1482,65674.0,65669.0,0.05]
[1718634937382,0.17444034,65673.0,65664.0,0.05]
[1718634937591,0.02171146,65672.0,65669.0,0.05]
[1718634937889,0.15272888,65673.0,65669.0,0.05]
[1718634937890,0.1371,65679.0,65675.0,0.152263]
[1718634938079,0.1371,65679.0,65671.0,0.07634112]
[1718634938080,0.17421762,65678.0,65671.0,0.07634112]
[1718634938293,0.15272888,65678.0,65669.0,0.05]
[1718634938522,0.0782,65675.0,65664.0,0.02133695]
[1718634938730,0.0782,65673.0,65665.0,0.05]
[1718634938953,0.15272888,65672.0,65665.0,0.05]
[1718634939170,0.0807,65679.0,65678.0,0.152257]
[1718634939374,0.0807,65679.0,65674.0,0.05]
[1718634939803,0.0807,65679.0,65678.0,0.152257]
[1718634940016,0.0807,65679.0,65675.0,0.34661117]
[1718634940017,0.0807,65679.0,65677.0,0.05]
[1718634940245,0.0807,65679.0,65675.0,0.02209838]
[1718634940487,4.78817861,65680.0,65678.0,0.05]
[1718634940914,4.78817861,65680.0,65675.0,0.05]
[1718634941123,4.78817861,65680.0,65674.0,0.052]
[1718634941538,4.78817861,65680.0,65678.0,0.202257]
[1718634941763,4.78817861,65680.0,65678.0,0.05]
[1718634941976,4.78817861,65680.0,65678.0,0.051]
[1718634942602,4.78817861,65680.0,65678.0,0.001]
[1718634942808,4.78817861,65680.0,65678.0,0.02098379]
[1718634943048,4.78817861,65680.0,65679.0,0.01998379]
[1718634943252,4.78817861,65680.0,65679.0,0.11998379]
[1718634943471,4.78817861,65680.0,65679.0,0.27223879]
[1718634943685,4.78817861,65680.0,65678.0,0.001]
[1718634944365,4.78817861,65680.0,65679.0,0.11998379]
[1718634944814,4.78817861,65680.0,65679.0,0.01998379]
[1718634945254,4.78817861,65680.0,65679.0,0.32223879]
[1718634945476,4.78817861,65680.0,65679.0,0.16998379]
[1718634946095,4.78817861,65680.0,65679.0,0.17298379]
[1718634946523,4.78817861,65680.0,65679.0,0.053]
[1718634946728,4.78817861,65680.0,65679.0,0.07298379]
[1718634947144,4.78817861,65680.0,65679.0,0.053]
[1718634947387,4.78817861,65680.0,65679.0,0.056]
[1718634948050,4.78817861,65680.0,65679.0,0.07598379]
[1718634948682,4.78817861,65680.0,65679.0,0.17598379]
[1718634948898,4.78817861,65680.0,65679.0,0.056]
[1718634949126,4.78817861,65680.0,65679.0,0.28898379]
[1718634949350,4.78817861,65680.0,65679.0,1.05026079]
[1718634949777,4.78817861,65680.0,65679.0,0.74574979]
[1718634950253,4.78817861,65680.0,65679.0,1.04726079]
[1718634950482,4.78817861,65680.0,65679.0,1.14726079]
[1718634950683,4.78817861,65680.0,65679.0,1.15226079]
[1718634950918,4.78817861,65680.0,65679.0,1.45677179]
[1718634951149,4.78817861,65680.0,65679.0,1.60750198]
[1718634951371,4.78817861,65680.0,65679.0,1.64150198]
[1718634951976,4.78817861,65680.0,65679.0,1.63150198]
[1718634952191,4.78817861,65680.0,65679.0,1.64150198]
[1718634952637,4.78817861,65680.0,65679.0,1.65450198]
[1718634952877,4.78817861,65680.0,65679.0,1.66850198]
[1718634953119,4.78817861,65680.0,65679.0,1.63850198]
[1718634953329,4.78817861,65680.0,65679.0,1.94301298]
[1718634953549,4.78817861,65680.0,65679.0,1.65250198]
[1718634953968,4.78817861,65680.0,65679.0,1.64250198]
[1718634954810,4.78817861,65680.0,65679.0,1.35199098]
[1718634955023,4.78817861,65680.0,65679.0,0.34798379]
[1718634955459,4.78817861,65680.0,65679.0,0.50023879]
[1718634955721,4.78817861,65680.0,65679.0,1.29396079]
[1718634955921,4.78817861,65680.0,65679.0,1.59847179]
[1718634957283,4.78817861,65680.0,65679.0,2.36472423]
[1718634957491,4.78817861,65680.0,65679.0,2.39524423]
[1718634957916,4.78817861,65680.0,65679.0,2.69975523]
[1718634958334,4.77443997,65680.0,65679.0,2.69975523]
[1718634958504,4.77443997,65680.0,65679.0,2.80175523]
[1718634958803,4.75243997,65680.0,65679.0,2.83604731]
[1718634959026,4.73628997,65680.0,65679.0,2.83604731]
[1718634959507,4.69728997,65680.0,65679.0,2.95204731]
[1718634959695,4.69728997,65680.0,65679.0,2.82569023]
[1718634959980,4.69728997,65680.0,65679.0,2.9380492]
[1718634960260,4.69728997,65680.0,65679.0,2.40517923]
[1718634960261,4.65431875,65680.0,65679.0,2.40517923]
[1718634960504,4.65431875,65680.0,65679.0,2.54553917]
[1718634960729,4.65431875,65680.0,65679.0,2.21802817]
[1718634960936,4.65431875,65680.0,65679.0,2.09166823]
[1718634961148,4.65431875,65680.0,65679.0,2.39617923]
[1718634961357,4.65431875,65680.0,65679.0,2.1680293]
[1718634961560,4.65431875,65680.0,65679.0,2.2180293]
[1718634962200,4.65431875,65680.0,65679.0,2.1580293]
[1718634962404,4.65431875,65680.0,65679.0,1.35574467]
[1718634962612,4.65431875,65680.0,65679.0,1.47814467]
[1718634963293,4.65431875,65680.0,65679.0,0.151835]
[1718634963504,4.65431875,65680.0,65679.0,0.071315]
[1718634964381,4.65431875,65680.0,65679.0,0.057315]
[1718634964601,4.79761875,65680.0,65679.0,0.057315]
[1718634965257,4.79761875,65680.0,65679.0,0.070315]
[1718634965455,4.79761875,65680.0,65679.0,0.027935]
[1718634966174,4.79761875,65680.0,65679.0,0.013935]
[1718634966598,4.79761875,65680.0,65679.0,0.010935]
[1718634967085,4.79761875,65680.0,65679.0,0.020935]
[1718634967290,4.95034763,65680.0,65679.0,0.010935]
[1718634967506,4.95034763,65680.0,65679.0,0.000935]
[1718634967723,4.95234763,65680.0,65679.0,0.000935]
[1718634967944,4.94472763,65680.0,65679.0,0.000935]
[1718634968186,4.94472763,65680.0,65679.0,0.001935]
[1718634968187,5.09698063,65680.0,65679.0,0.001935]
[1718634968398,5.09698063,65680.0,65664.0,0.05]
[1718634968399,0.152267,65675.0,65665.0,0.04238]
[1718634968631,0.304515,65679.0,65665.0,0.45804674]
[1718634968632,0.1454,65670.0,65665.0,0.45804674]
[1718634968839,0.1454,65670.0,65661.0,0.12634112]
[1718634968840,0.14418049,65670.0,65666.0,0.04238]
[1718634969054,0.0673,65668.0,65664.0,0.04238]
[1718634969502,0.0673,65668.0,65661.0,0.02163411]
[1718634969503,0.0673,65667.0,65661.0,0.02163411]
[1718634970368,0.0673,65667.0,65664.0,0.006]
[1718634970611,0.22002888,65667.0,65664.0,0.006]
[1718634970824,0.0673,65665.0,65660.0,0.04238]
[1718634971035,0.0673,65665.0,65660.0,0.061618]
[1718634971241,0.0673,65665.0,65661.0,0.02]
[1718634971451,0.0673,65665.0,65662.0,0.04238]
[1718634971662,0.0673,65665.0,65661.0,0.01]
[1718634971850,0.087,65664.0,65662.0,0.04238]
[1718634972512,0.087,65664.0,65662.0,0.03238]
[1718634972722,0.08681675,65664.0,65662.0,0.03238]
[1718634972940,0.23954563,65664.0,65655.0,0.03238]
[1718634973162,0.21752888,65663.0,65656.0,0.03238]
[1718634973368,0.0648,65662.0,65656.0,0.03238]
[1718634973580,0.15272888,65661.0,65656.0,0.03238]
[1718634973795,0.15272888,65661.0,65656.0,0.336997]
[1718634974010,0.0648,65662.0,65661.0,0.60925479]
[1718634974237,0.0648,65666.0,65665.0,0.03238]
[1718634974499,0.0648,65676.0,65665.0,0.03238]
[1718634974709,0.15272888,65675.0,65665.0,0.03238]
[1718634975785,0.0851,65674.0,65665.0,0.03238]
[1718634975990,0.0851,65674.0,65673.0,0.456808]
[1718634976206,0.005,65676.0,65675.0,0.489173]
[1718634976668,0.005,65676.0,65675.0,0.35462779]
[1718634976877,0.005,65676.0,65675.0,0.96368579]
[1718634977082,0.005,65676.0,65675.0,0.75915679]
[1718634977292,4.64669875,65680.0,65679.0,0.03238]
[1718634977673,4.64669875,65680.0,65679.0,0.184635]
[1718634977881,4.64669875,65680.0,65679.0,0.03238]
[1718634978673,4.64669875,65680.0,65679.0,0.03638]
[1718634979093,4.64669875,65680.0,65679.0,0.03238]
[1718634980003,4.79942763,65680.0,65679.0,0.03238]
[1718634980778,4.79942763,65680.0,65679.0,0.03738]
[1718634981321,4.79942763,65680.0,65679.0,0.03238]
[1718634981536,4.79942763,65680.0,65679.0,0.005]
[1718634981766,4.80442763,65680.0,65679.0,0.005]
[1718634981995,4.80442763,65680.0,65676.0,0.03238]
[1718634982470,4.80442763,65680.0,65670.0,0.03238]
[1718634982471,0.0845,65677.0,65670.0,0.03238]
[1718634982711,0.15272888,65676.0,65670.0,0.03238]
[1718634983361,0.1475,65675.0,65670.0,0.03238]
[1718634983599,0.15272888,65674.0,65670.0,0.03238]
[1718634984106,0.15272888,65674.0,65667.0,0.03238]
[1718634984841,0.152271,65673.0,65667.0,0.03238]
[1718634985076,0.23512888,65672.0,65667.0,0.03238]
[1718634985315,0.0651,65671.0,65661.0,0.03238]
[1718634985538,0.0651,65671.0,65667.0,0.01]
[1718634985539,0.15272888,65670.0,65667.0,0.01]
[1718634986021,0.15272888,65670.0,65662.0,0.03238]
[1718634986938,0.30500588,65670.0,65662.0,0.03238]
[1718634987144,0.15272888,65670.0,65662.0,0.03238]
[1718634987566,0.15272888,65670.0,65667.0,0.001]
[1718634987981,0.0651,65668.0,65667.0,0.001]
[1718634988163,0.21782888,65668.0,65662.0,0.03238]
[1718634988376,0.15272888,65667.0,65662.0,0.03238]
[1718634988924,0.15272888,65667.0,65658.0,0.03238]
[1718634989127,0.15272888,65667.0,65659.0,0.03238]
[1718634989128,0.0824,65666.0,65659.0,0.03238]
[1718634989407,0.15272888,65665.0,65656.0,0.03238]
[1718634989606,0.15272888,65665.0,65650.0,0.05]
[1718634989607,0.307392,65664.0,65654.0,0.03238]
[1718634989741,0.15272888,65663.0,65654.0,0.03238]
[1718634990385,0.15272888,65663.0,65654.0,0.05270138]
[1718634990649,0.15272888,65663.0,65654.0,0.03238]
[1718634991198,0.30502188,65663.0,65654.0,0.005]
[1718634991433,0.15272888,65663.0,65654.0,0.03738]
[1718634991671,0.30502088,65663.0,65654.0,0.03738]
[1718634992074,0.15272888,65663.0,65654.0,0.03738]
[1718634992240,0.152295,65662.0,65654.0,0.03738]
[1718634992446,0.15272888,65661.0,65654.0,0.03738]
[1718634992653,0.1524,65660.0,65654.0,0.005935]
[1718634992855,0.15272888,65659.0,65654.0,0.005935]
[1718634993833,0.0862,65658.0,65654.0,0.005935]
[1718634994039,0.0862,65656.0,65654.0,0.005935]
[1718634994236,0.15272888,65655.0,65654.0,0.005935]
[1718634994842,0.15272888,65655.0,65654.0,0.000935]
[1718634995559,0.30503988,65655.0,65654.0,0.000935]
[1718634995789,0.22012888,65655.0,65654.0,0.000935]
[1718634996017,0.38043988,65655.0,65654.0,0.001935]
[1718634996694,0.22012888,65655.0,65654.0,0.000935]
[1718634996910,0.37243988,65655.0,65654.0,0.000935]
[1718634997388,0.37343988,65655.0,65654.0,0.001935]
[1718634997615,0.37243988,65655.0,65654.0,0.000935]
[1718634998074,0.001,65655.0,65654.0,0.001935]
[1718634998253,0.001,65655.0,65654.0,0.62774919]
[1718634998254,0.009,65655.0,65654.0,0.62774919]
[1718634998481,0.009,65655.0,65654.0,0.96686579]
[1718634998938,0.001,65655.0,65654.0,1.28049279]
[1718634999162,0.001,65655.0,65654.0,1.60784167]
[1718634999402,0.009,65655.0,65654.0,1.49130723]
[1718634999637,0.009,65655.0,65654.0,0.60934056]
[1718634999890,0.008,65655.0,65654.0,0.57561179]
[1718635000100,0.0674,65676.0,65666.0,0.03238]
[1718635000331,0.15272888,65674.0,65666.0,0.03238]
[1718635000534,0.15272888,65674.0,65666.0,0.07548009]
[1718635000740,0.15272888,65674.0,65666.0,0.03238]
[1718635001648,0.15372888,65674.0,65666.0,0.03238]
[1718635002562,0.15572888,65674.0,65666.0,0.03238]
[1718635003257,0.30799688,65674.0,65666.0,0.03238]
[1718635003500,0.30799688,65674.0,65664.0,0.05236379]
[1718635003734,0.30799688,65674.0,65666.0,0.03238]
[1718635003735,0.15572888,65674.0,65666.0,0.03238]
[1718635003976,0.003,65674.0,65673.0,0.11998379]
[1718635004218,0.003,65674.0,65673.0,0.60917179]
[1718635004452,0.003,65674.0,65673.0,0.91371079]
[1718635004705,0.002,65674.0,65673.0,0.15236379]
[1718635004929,0.6805,65681.0,65674.0,0.01998379]
[1718635005179,0.6805,65681.0,65676.0,0.03238]
[1718635005580,0.6805,65681.0,65675.0,0.03238]
[1718635005814,0.6805,65681.0,65676.0,0.03238]
[1718635007948,4.64769875,65680.0,65676.0,0.03238]
[1718635008846,4.64769875,65680.0,65679.0,0.60912979]
[1718635009041,4.64969875,65680.0,65679.0,0.30461879]
[1718635009708,4.64969875,65680.0,65679.0,0.03238]
[1718635009928,4.64769875,65680.0,65679.0,0.03238]
[1718635010362,4.65369875,65680.0,65679.0,0.03238]
[1718635010589,4.65269875,65680.0,65679.0,0.03238]
[1718635011062,4.65369875,65680.0,65679.0,0.001]
[1718635011279,4.65369875,65680.0,65679.0,0.03338]
[1718635011724,4.9886,65680.0,65679.0,0.001]
[1718635011944,5.0759,65680.0,65679.0,0.001]
[1718635012159,4.95872763,65680.0,65679.0,0.001]
[1718635013259,4.74099875,65680.0,65679.0,0.001]
[1718635013933,4.65369875,65680.0,65679.0,0.12098379]
[1718635014597,4.65369875,65680.0,65679.0,0.001]
[1718635015027,4.65369875,65680.0,65679.0,0.02098379]
[1718635015453,4.65369875,65680.0,65679.0,0.001]
[1718635015665,4.65369875,65680.0,65679.0,0.12098379]
[1718635016076,4.65369875,65680.0,65679.0,0.001]
[1718635017522,4.65369875,65680.0,65679.0,0.02098379]
[1718635017745,4.65369875,65680.0,65679.0,0.001]
[1718635020040,4.88842763,65680.0,65679.0,0.001]
[1718635020897,4.65369875,65680.0,65679.0,0.001]
[1718635021106,4.65369875,65680.0,65679.0,0.17323879]
[1718635021316,4.65369875,65680.0,65679.0,0.57774979]
[1718635021545,4.65369875,65680.0,65679.0,1.21915179]
[1718635021756,4.65369875,65680.0,65679.0,0.91464079]
[1718635021964,4.65369875,65680.0,65679.0,0.61012979]
[1718635022815,4.65369875,65680.0,65679.0,0.91464079]
[1718635023028,4.65369875,65680.0,65679.0,0.96464079]
[1718635023234,4.65369875,65680.0,65679.0,1.35245335]
[1718635023448,4.65369875,65680.0,65679.0,1.19974079]
[1718635023681,4.65369875,65680.0,65679.0,1.50425179]
[1718635024106,4.64769875,65680.0,65679.0,1.50425179]
[1718635024813,4.64669875,65680.0,65679.0,1.50325179]
[1718635025674,4.64769875,65680.0,65679.0,1.51625179]
[1718635026093,4.64769875,65680.0,65679.0,1.51125179]
[1718635026318,4.64769875,65680.0,65679.0,1.81576279]
[1718635026528,4.64769875,65680.0,65679.0,2.14239213]
[1718635026959,4.64769875,65680.0,65679.0,2.67526409]
[1718635027465,4.64769875,65680.0,65679.0,2.69878409]
[1718635027742,4.64485969,65680.0,65679.0,2.59678409]
[1718635027956,4.64485969,65680.0,65679.0,2.59078409]
[1718635028190,4.64485969,65680.0,65679.0,2.28627309]
[1718635028481,4.64485969,65680.0,65679.0,2.30027309]
[1718635028681,4.64485969,65680.0,65679.0,2.28627309]
[1718635028914,4.64485969,65680.0,65679.0,2.29927309]
[1718635029130,4.64485969,65680.0,65679.0,2.31326915]
[1718635029342,4.64485969,65680.0,65679.0,2.00875815]
[1718635029597,4.64485969,65680.0,65679.0,2.31326915]
[1718635030043,4.64485969,65680.0,65679.0,2.30026915]
[1718635030247,4.64485969,65680.0,65679.0,1.99575815]
[1718635030463,4.49545967,65680.0,65679.0,2.41626915]
[1718635030727,4.49545967,65680.0,65679.0,2.74378015]
[1718635030961,4.49545967,65680.0,65679.0,2.43926915]
[1718635031824,4.49545967,65680.0,65679.0,2.42526915]
[1718635032037,4.49545967,65680.0,65679.0,2.41126915]
[1718635032270,4.45281967,65680.0,65679.0,2.42526915]
[1718635032479,4.33255467,65680.0,65679.0,3.09829115]
[1718635032689,4.33255467,65680.0,65679.0,3.10966936]
[1718635032690,4.33105894,65680.0,65679.0,3.10966936]
[1718635033378,4.33105894,65680.0,65679.0,3.25115936]
[1718635033379,4.25605894,65680.0,65679.0,3.25115936]
[1718635033827,4.23957594,65680.0,65679.0,3.25115936]
[1718635034034,4.20127394,65680.0,65679.0,2.94664836]
[1718635034449,4.20127394,65680.0,65679.0,2.98759223]
[1718635034660,4.20127394,65680.0,65679.0,3.25115936]
[1718635034880,4.19482864,65680.0,65679.0,3.25115936]
[1718635035552,4.19482864,65680.0,65679.0,3.55567036]
[1718635035758,4.19482864,65680.0,65679.0,3.27879921]
[1718635037834,4.19482864,65680.0,65679.0,2.97428821]
[1718635038457,4.19482864,65680.0,65679.0,3.27879921]
[1718635038668,4.19482864,65680.0,65679.0,2.97428821]
[1718635038890,4.17082864,65680.0,65679.0,2.97428821]
[1718635039107,4.17082864,65680.0,65679.0,3.27879921]
[1718635039366,4.17082864,65680.0,65679.0,2.97428821]
[1718635039367,4.02601864,65680.0,65679.0,2.97428821]
[1718635040228,4.02601864,65680.0,65679.0,3.27879921]
[1718635040673,3.80147062,65680.0,65679.0,3.12608665]
[1718635040884,2.79101062,65680.0,65679.0,3.43059765]
[1718635041093,2.79101062,65680.0,65679.0,3.12608665]
[1718635041539,2.68454062,65680.0,65679.0,3.12608665]
[1718635041745,2.68328337,65680.0,65679.0,3.12608665]
[1718635041967,2.68172719,65680.0,65679.0,3.12608665]
[1718635042808,2.65572719,65680.0,65679.0,3.12608665]
[1718635043015,2.47067719,65680.0,65679.0,3.43059765]
[1718635043248,2.20684019,65680.0,65679.0,3.61719714]
[1718635043462,2.07906019,65680.0,65679.0,3.70938674]
[1718635043699,2.07906019,65680.0,65679.0,4.15652389]
[1718635043700,1.02733537,65680.0,65679.0,4.15652389]
[1718635043921,0.99633537,65680.0,65679.0,4.30193276]
[1718635044148,0.87113437,65680.0,65679.0,4.18935138]
[1718635044365,0.86084635,65680.0,65679.0,4.18935138]
[1718635044569,0.0482,65700.0,65699.0,0.57597279]
[1718635044776,0.0482,65700.0,65699.0,1.67460059]
[1718635044777,0.01399253,65700.0,65699.0,1.67460059]
[1718635044982,0.01399253,65700.0,65699.0,2.53785459]
[1718635045187,0.01399253,65700.0,65699.0,2.53585459]
[1718635045395,0.00899253,65700.0,65699.0,2.17207181]
[1718635045626,0.00899253,65700.0,65699.0,2.84227738]
[1718635045835,0.00899253,65700.0,65699.0,2.22007181]
[1718635046044,0.00899253,65700.0,65699.0,2.53785939]
[1718635046244,0.00899253,65700.0,65699.0,2.53585939]
[1718635046468,0.00899253,65700.0,65699.0,2.53785939]
[1718635046678,0.00899253,65700.0,65699.0,2.53585939]
[1718635047534,0.00899253,65700.0,65699.0,2.54685939]
[1718635049510,0.00899253,65700.0,65699.0,2.64885939]
[1718635049926,0.00899253,65700.0,65699.0,2.65985939]
[1718635050137,0.00899253,65700.0,65699.0,2.55785939]
[1718635052333,0.00899253,65700.0,65699.0,3.10576739]
[1718635052547,0.00899253,65700.0,65699.0,2.80134939]
[1718635053190,0.02241301,65733.0,65724.0,0.19238]
[1718635053410,0.1847,65731.0,65725.0,0.07634112]
[1718635053622,0.1847,65731.0,65724.0,0.20236379]
[1718635054035,0.02241301,65733.0,65726.0,0.1]
[1718635054256,0.02241301,65733.0,65720.0,1.262136]
[1718635054257,0.02241301,65733.0,65731.0,0.152133]
[1718635054494,0.02241301,65733.0,65728.0,0.18238]
[1718635054495,0.02341301,65733.0,65728.0,0.18238]
[1718635054714,0.001,65733.0,65728.0,0.18238]
[1718635054925,0.001,65733.0,65729.0,0.11998379]
[1718635055363,0.001,65733.0,65728.0,0.08238]
[1718635055580,0.00852,65737.0,65728.0,0.08238]
[1718635055824,0.00852,65737.0,65724.0,0.03338]
[1718635055825,0.15214,65729.0,65724.0,0.03338]
[1718635056035,0.33742888,65729.0,65724.0,0.03338]
[1718635056243,0.152147,65726.0,65724.0,0.03338]
[1718635056464,0.1481,65725.0,65724.0,0.001]
[1718635056694,0.15576623,65725.0,65724.0,0.03238]
[1718635056909,0.15576623,65725.0,65720.0,1.294516]
[1718635057157,0.15576623,65725.0,65724.0,0.03238]
[1718635057368,0.1508,65724.0,65723.0,0.03238]
[1718635057786,0.00766623,65724.0,65723.0,0.03238]
[1718635058223,0.1857,65725.0,65724.0,0.03238]
[1718635058431,0.3365,65725.0,65724.0,0.03238]
[1718635058630,0.3355,65725.0,65724.0,0.03238]
[1718635058847,0.1508,65724.0,65723.0,0.03238]
[1718635059012,0.19236623,65725.0,65724.0,0.03338]
[1718635059213,0.1847,65725.0,65724.0,0.03338]
[1718635059691,0.33635,65725.0,65724.0,0.03338]
[1718635059858,0.33635,65725.0,65724.0,0.03238]
[1718635060057,0.34401623,65725.0,65724.0,0.03238]
[1718635060459,0.19321623,65725.0,65724.0,0.03238]
[1718635060695,0.18555,65725.0,65724.0,0.03238]
[1718635061056,0.33525,65725.0,65724.0,0.03338]
[1718635061379,0.34291623,65725.0,65724.0,0.03338]
[1718635061583,0.34291623,65725.0,65724.0,0.03327971]
[1718635061739,0.5222705,65725.0,65724.0,0.00089971]
[1718635062147,0.31194511,65725.0,65724.0,0.00089971]
[1718635062462,0.49660422,65725.0,65724.0,0.00089971]
[1718635062643,0.0849,65724.0,65720.0,1.262136]
[1718635062848,0.1561,65721.0,65720.0,1.262136]
[1718635063052,0.16372534,65721.0,65720.0,1.262136]
[1718635063258,0.16372534,65721.0,65720.0,1.414296]
[1718635063461,0.3408,65721.0,65720.0,1.262136]
[1718635063682,0.34842534,65721.0,65720.0,1.262136]
[1718635063886,0.16372534,65721.0,65720.0,1.92098079]
[1718635064105,0.1561,65721.0,65720.0,1.61665979]
[1718635064305,0.0863,65721.0,65720.0,1.61665979]
[1718635064532,0.271,65721.0,65720.0,1.294516]
[1718635064756,0.1524,65721.0,65720.0,1.294516]
[1718635064983,0.34471723,65721.0,65720.0,1.294516]
[1718635065188,0.3371,65721.0,65720.0,1.294516]
[1718635065392,0.34471723,65721.0,65720.0,1.294516]
[1718635065603,0.34471723,65721.0,65720.0,1.446676]
[1718635065806,0.34471723,65721.0,65720.0,1.46449979]
[1718635065807,0.16001723,65721.0,65720.0,1.46449979]
[1718635066036,0.16001723,65721.0,65720.0,1.61665979]
[1718635066037,0.1524,65721.0,65720.0,1.61665979]
[1718635066241,0.1524,65721.0,65720.0,1.46449979]
[1718635066455,0.1534,65721.0,65720.0,1.344516]
[1718635066691,0.1534,65721.0,65720.0,1.92098079]
[1718635066911,0.001,65721.0,65720.0,1.92098079]
[1718635067339,0.001,65721.0,65720.0,1.61665979]
[1718635067542,0.13973544,65725.0,65724.0,0.08238]
[1718635067969,0.14740054,65725.0,65724.0,0.08238]
[1718635068216,0.14740054,65725.0,65724.0,0.03238]
[1718635068217,0.13973544,65725.0,65724.0,0.03238]
[1718635069498,0.14073544,65725.0,65724.0,0.03338]
[1718635069720,0.14073544,65725.0,65724.0,0.03438]
[1718635069938,0.14073544,65725.0,65724.0,0.15436379]
[1718635069939,0.1857,65725.0,65724.0,0.15436379]
[1718635070143,0.1857,65725.0,65724.0,0.03438]
[1718635070547,0.2743,65725.0,65724.0,0.03438]
[1718635070951,0.2819651,65725.0,65724.0,0.03438]
[1718635071188,0.0086651,65725.0,65724.0,0.96511879]
[1718635071400,0.0086651,65725.0,65724.0,0.66081679]
[1718635071602,0.001,65725.0,65724.0,0.66081679]
[1718635072234,0.001,65725.0,65724.0,0.20436379]
[1718635072445,0.1523,65729.0,65726.0,0.13238]
[1718635072679,0.1523,65729.0,65726.0,0.284525]
[1718635072884,0.1523,65729.0,65726.0,0.13238]
[1718635073084,0.1523,65729.0,65726.0,0.15236379]
[1718635073312,0.1523,65729.0,65728.0,0.11998379]
[1718635073535,0.1523,65729.0,65728.0,0.27212579]
[1718635073759,0.1523,65729.0,65728.0,0.88069379]
[1718635073958,0.1523,65729.0,65728.0,0.27212579]
[1718635074385,0.1523,65729.0,65727.0,0.05]
[1718635074568,0.1523,65729.0,65727.0,0.15]
[1718635074787,0.1523,65729.0,65728.0,0.152142]
[1718635074957,0.1523,65729.0,65728.0,0.11998379]
[1718635075157,0.1523,65729.0,65727.0,0.15]
[1718635075499,0.16000005,65729.0,65727.0,0.05]
[1718635075718,0.1523,65729.0,65727.0,0.05]
[1718635076350,0.19240297,65728.0,65727.0,0.05]
[1718635076782,0.19240297,65728.0,65727.0,0.16998379]
[1718635077003,0.19240297,65728.0,65726.0,0.03238]
[1718635077415,0.30602888,65727.0,65726.0,0.03238]
[1718635077838,0.31373222,65727.0,65726.0,0.03238]
[1718635079911,0.16100334,65727.0,65726.0,0.284526]
[1718635080107,0.16100334,65727.0,65726.0,0.30450979]
[1718635080568,0.16100334,65727.0,65726.0,0.03238]
[1718635082830,0.31373222,65727.0,65726.0,0.03238]
[1718635084159,0.31373222,65727.0,65726.0,0.03338]
[1718635084160,0.16100334,65727.0,65726.0,0.03338]
[1718635084367,0.16100334,65727.0,65726.0,0.185526]
[1718635084368,0.09140334,65727.0,65726.0,0.185526]
[1718635084595,0.27610334,65727.0,65726.0,0.03338]
[1718635085479,0.27610334,65727.0,65726.0,0.03238]
[1718635086803,0.09109516,65736.0,65735.0,0.80648771]
[1718635087028,0.30036625,65736.0,65735.0,0.80648771]
[1718635087254,0.39397109,65736.0,65735.0,0.80648771]
[1718635087512,0.46236627,65736.0,65735.0,0.80648771]
[1718635087752,0.39397109,65736.0,65735.0,0.80648771]
[1718635088388,0.46236627,65736.0,65735.0,0.80748771]
[1718635089305,0.39397109,65736.0,65735.0,0.80748771]
[1718635089759,0.45394221,65736.0,65735.0,0.80748771]
[1718635089971,0.45394221,65736.0,65735.0,0.80848771]
[1718635090194,0.60667109,65736.0,65735.0,0.80848771]
[1718635090408,0.69776625,65736.0,65735.0,0.80848771]
[1718635091308,0.51306625,65736.0,65735.0,0.80848771]
[1718635091565,0.69776625,65736.0,65735.0,0.80848771]
[1718635092194,0.60667109,65736.0,65735.0,0.80848771]
[1718635092630,0.60752109,65736.0,65735.0,0.80848771]
[1718635093325,0.69877157,65736.0,65735.0,0.80848771]
[1718635093566,1.24859109,65736.0,65735.0,0.80848771]
[1718635094053,1.06389109,65736.0,65735.0,0.80848771]
[1718635094277,2.04753632,65736.0,65735.0,0.80848771]
[1718635094528,1.6064136,65736.0,65735.0,0.80848771]
[1718635094748,1.75912616,65736.0,65735.0,0.80848771]
[1718635095937,2.06337316,65736.0,65735.0,0.80848771]
[1718635096173,1.75912616,65736.0,65735.0,0.80848771]
[1718635096712,1.89598507,65736.0,65735.0,0.80848771]
[1718635096954,1.75912616,65736.0,65735.0,0.80848771]
[1718635097197,2.06337316,65736.0,65735.0,0.80848771]
[1718635097662,1.9106606,65736.0,65735.0,0.80848771]
[1718635098149,1.9282806,65736.0,65735.0,0.80848771]
[1718635099268,0.43747439,65736.0,65735.0,0.80748771]
[1718635099528,0.58155439,65736.0,65735.0,0.80748771]
[1718635099747,0.55097888,65736.0,65735.0,0.80748771]
[1718635099961,1.36238144,65736.0,65735.0,0.80748771]
[1718635100374,1.73651984,65736.0,65735.0,0.80848771]
[1718635100584,2.04076684,65736.0,65735.0,0.80748771]
[1718635100798,2.01245328,65736.0,65735.0,0.80748771]
[1718635101024,2.08335609,65736.0,65735.0,0.80648771]
[1718635101438,2.09435609,65736.0,65735.0,0.80748771]